fUSD/lending_fUSD_20240606
["ID","MTS","AMOUNT","RATE_DAILY","PERIOD"]
[328662685,1717683061677,-500.0,0.00028493,4]
[328662686,1717683061688,-500.0,0.00028493,4]
[328662687,1717683061697,-2815.93,0.00028493,4]
[328662688,1717683061707,-634.77,0.00028493,4]
[328662689,1717683061716,-500.0,0.00028493,4]
[328662690,1717683061726,-742.62,0.00028493,4]
[328662691,1717683061735,-513.38,0.00028493,4]
[328662692,1717683061744,-500.0,0.00028493,4]
[328662693,1717683061754,-500.0,0.00028493,4]
[328662694,1717683061763,-500.0,0.00028493,4]
[328662695,1717683061773,-500.0,0.00028493,4]
[328662696,1717683061783,-500.0,0.00028493,4]
[328662697,1717683061792,-500.0,0.00028493,4]
[328662698,1717683061801,-500.0,0.00028493,4]
[328662699,1717683061811,-500.0,0.00028493,4]
[328662700,1717683061820,-1456.81,0.00028493,4]
[328662701,1717683061830,-500.0,0.00028493,4]
[328662702,1717683061839,-603.48,0.00028493,4]
[328662703,1717683061848,-506.53,0.00028493,4]
[328662704,1717683061858,-669.58,0.00028493,4]
[328662705,1717683061867,-500.0,0.00028493,4]
[328662706,1717683061878,-500.0,0.00028493,4]
[328662707,1717683061888,-500.0,0.00028493,4]
[328662708,1717683061897,-500.0,0.00028493,4]
[328662709,1717683061907,-2393.95,0.00028493,4]
[328662710,1717683061916,-500.0,0.00028493,4]
[328662711,1717683061926,-1406.7,0.00028493,4]
[328662712,1717683061935,-500.0,0.00028493,4]
[328662713,1717683061945,-4438.97,0.00028493,4]
[328662714,1717683061954,-500.0,0.00028493,4]
[328662715,1717683061964,-500.0,0.00028493,4]
[328662716,1717683061974,-500.0,0.00028493,4]
[328662717,1717683061983,-500.0,0.00028493,4]
[328662718,1717683061993,-500.0,0.00028493,4]
[328662719,1717683062003,-727.93,0.00028493,4]
[328662720,1717683062013,-1151.3,0.00028493,4]
[328662721,1717683062024,-500.0,0.00028493,4]
[328662722,1717683062034,-500.0,0.00028493,4]
[328662723,1717683062044,-1673.74,0.00028493,4]
[328662724,1717683062054,-2730.1,0.00028493,4]
[328662725,1717683062064,-500.0,0.00028493,4]
[328662726,1717683062074,-500.0,0.00028493,4]
[328662727,1717683062084,-500.0,0.00028493,4]
[328662728,1717683062094,-500.0,0.00028493,4]
[328662729,1717683062104,-1555.57,0.00028493,4]
[328662730,1717683062114,-500.0,0.00028493,4]
[328662731,1717683062124,-500.0,0.00028493,4]
[328662732,1717683062136,-2644.53,0.00028493,4]
[328662733,1717683062147,-500.0,0.00028493,4]
[328662734,1717683062157,-500.0,0.00028493,4]
[328662735,1717683062166,-648.81,0.00028493,4]
[328662736,1717683062176,-500.0,0.00028493,4]
[328662737,1717683062187,-500.0,0.00028493,4]
[328662738,1717683062197,-500.0,0.00028493,4]
[328662739,1717683062206,-500.0,0.00028493,4]
[328662740,1717683062236,-500.0,0.00028493,4]
[328662741,1717683062247,-687.06,0.00028493,4]
[328662742,1717683062257,-500.0,0.00028493,4]
[328662743,1717683062267,-536.61,0.00028493,4]
[328662744,1717683062279,-3792.6,0.00028493,4]
[328662745,1717683062291,-652.38,0.00028493,4]
[328662746,1717683062300,-500.0,0.00028493,4]
[328662747,1717683062310,-500.0,0.00028493,4]
[328662748,1717683062319,-872.14,0.00028493,4]
[328662749,1717683062330,-500.0,0.00028493,4]
[328662750,1717683062339,-1060.43,0.00028493,4]
[328662751,1717683062349,-1059.91,0.00028493,4]
[328662752,1717683062359,-1562.46,0.00028493,4]
[328662753,1717683062369,-500.0,0.00028493,4]
[328662754,1717683062379,-523.22,0.00028493,4]
[328662755,1717683062389,-500.0,0.00028493,4]
[328662756,1717683062399,-500.0,0.00028493,4]
[328662757,1717683062408,-500.0,0.00028493,4]
[328662758,1717683062420,-2689.76,0.00028493,4]
[328662759,1717683062432,-596.44,0.00028493,4]
[328662760,1717683062442,-169.8014733,0.00028493,4]
[328662761,1717683062452,-500.0,0.00028493,4]
[328662762,1717683062463,-500.0,0.00028493,4]
[328662763,1717683062473,-500.0,0.00028493,4]
[328662764,1717683062483,-500.0,0.00028493,4]
[328662765,1717683062493,-551.96,0.00028493,4]
[328662766,1717683062503,-3998.11,0.00028493,4]
[328662767,1717683062512,-688.76,0.00028493,4]
[328662768,1717683062522,-500.0,0.00028493,4]
[328662769,1717683062531,-1107.27,0.00028493,4]
[328662770,1717683062541,-500.0,0.00028493,4]
[328662771,1717683062550,-500.0,0.00028493,4]
[328662772,1717683062559,-639.53489854,0.00028493,4]
[328662773,1717683062568,-1366.56,0.00028493,4]
[328662774,1717683062578,-500.0,0.00028493,4]
[328662775,1717683062588,-500.0,0.00028493,4]
[328662776,1717683062598,-500.0,0.00028493,4]
[328662777,1717683062607,-1249.74,0.00028493,4]
[328662778,1717683062617,-500.0,0.00028493,4]
[328662779,1717683062626,-500.0,0.00028493,4]
[328662780,1717683062636,-3019.69,0.00028493,4]
[328662781,1717683062645,-683.79,0.00028493,4]
[328662782,1717683062655,-500.0,0.00028493,4]
[328662783,1717683062664,-3318.43,0.00028493,4]
[328662784,1717683062674,-500.0,0.00028493,4]
[328662785,1717683062684,-500.0,0.00028493,4]
[328662786,1717683062694,-500.0,0.00028493,4]
[328662787,1717683062704,-500.0,0.00028493,4]
[328662788,1717683062714,-500.0,0.00028493,4]
[328662789,1717683062724,-500.0,0.00028493,4]
[328662790,1717683062734,-1657.41,0.00028493,4]
[328662791,1717683062743,-500.0,0.00028493,4]
[328662792,1717683062754,-373.28,0.00028493,4]
[328662793,1717683062763,-764.19,0.00028493,4]
[328662794,1717683063015,-2543.25,0.00028493,4]
[328662795,1717683063030,-500.0,0.00028493,4]
[328662796,1717683063041,-500.0,0.00028493,4]
[328662797,1717683063052,-500.0,0.00028493,4]
[328662798,1717683063063,-500.0,0.00028493,4]
[328662799,1717683063072,-747.97,0.00028493,4]
[328662800,1717683063082,-507.39,0.00028493,4]
[328662801,1717683063091,-2288.29,0.00028493,4]
[328662802,1717683063100,-500.0,0.00028493,4]
[328662803,1717683063110,-500.0,0.00028493,4]
[328662804,1717683063120,-580.42,0.00028493,4]
[328662805,1717683063130,-1070.47,0.00028493,4]
[328662806,1717683063140,-500.0,0.00028493,4]
[328662807,1717683063150,-560.19,0.00028493,4]
[328662808,1717683063160,-3164.12,0.00028493,4]
[328662809,1717683063169,-500.0,0.00028493,4]
[328662810,1717683063180,-500.0,0.00028493,4]
[328662811,1717683063192,-751.82,0.00028493,4]
[328662812,1717683063202,-817.16,0.00028493,4]
[328662813,1717683063210,-932.85,0.00028493,4]
[328662814,1717683063220,-500.0,0.00028493,4]
[328662815,1717683063232,-577.62,0.00028493,4]
[328662816,1717683063243,-500.0,0.00028493,4]
[328662817,1717683063252,-556.39,0.00028493,4]
[328662818,1717683063261,-500.0,0.00028493,4]
[328662819,1717683063272,-502.03,0.00028493,4]
[328662820,1717683063283,-1137.15,0.00028493,4]
[328662821,1717683063292,-1347.08,0.00028493,4]
[328662822,1717683063302,-500.0,0.00028493,4]
[328662823,1717683063311,-500.0,0.00028493,4]
[328662824,1717683063320,-550.28,0.00028493,4]
[328662825,1717683063329,-575.32,0.00028493,4]
[328662826,1717683063338,-506.62,0.00028493,4]
[328662827,1717683063347,-2314.45,0.00028493,4]
[328662828,1717683063357,-500.0,0.00028493,4]
[328662829,1717683063367,-500.0,0.00028493,4]
[328662830,1717683063376,-500.0,0.00028493,4]
[328662831,1717683063385,-618.6,0.00028493,4]
[328662832,1717683063394,-500.0,0.00028493,4]
[328662833,1717683063404,-675.98,0.00028493,4]
[328662834,1717683063413,-514.53815,0.00028493,7]
[328662835,1717683063426,-514.53815,0.00028493,7]
[328662836,1717683063437,-782.61360794,0.00028498,2]
[328662837,1717683063446,-363.31,0.0002851,2]
[328662838,1717683063456,-150.0,0.0002853,2]
[328662839,1717683063467,-1000.0,0.00028571,14]
[328662840,1717683063476,-500.0,0.00028595,2]
[328662841,1717683063485,-150.0,0.00028601,2]
[328662842,1717683063495,-500.0,0.00028652,2]
[328662843,1717683063506,-200.0,0.00028652,2]
[328662844,1717683063516,-428.89287725,0.00028667,2]
[328662845,1717683063526,-348.7307611,0.00028667,2]
[328662846,1717683063535,-4790.6242945,0.00028667,2]
[328662847,1717683063545,-150.0,0.00028675,2]
[328662848,1717683063554,-345.0,0.000287,2]
[328662849,1717683063563,-1000.0,0.00028702,14]
[328662850,1717683063572,-500.0,0.0002871,2]
[328662851,1717683063583,-254.93585412,0.00028757,2]
[328662852,1717683063592,-5890.47342882,0.00028766,2]
[328662853,1717683063602,-289.66478697,0.00028767,2]
[328662854,1717683063611,-155.0,0.00028767,2]
[328662855,1717683063620,-181.09443251,0.00028767,2]
[328662856,1717683063630,-333.17681456,0.00028767,2]
[328662857,1717683063639,-500.0,0.00028767,2]
[328662858,1717683063649,-556.67867514,0.00028767,4]
[328662859,1717683063658,-500.0,0.00028767,4]
[328662860,1717683063667,-532.83273818,0.00028767,4]
[328662861,1717683063677,-500.0,0.00028767,4]
[328662862,1717683063686,-500.0,0.00028767,4]
[328662863,1717683063696,-500.0,0.00028767,4]
[328662864,1717683063705,-500.0,0.00028767,4]
[328662865,1717683063714,-638.59,0.00028767,4]
[328662866,1717683063724,-500.0,0.00028767,4]
[328662867,1717683063733,-500.0,0.00028767,4]
[328662868,1717683063743,-517.73741268,0.00028767,4]
[328662869,1717683063752,-500.0,0.00028767,4]
[328662870,1717683063762,-553.33654098,0.00028767,4]
[328662871,1717683063772,-500.0,0.00028767,4]
[328662872,1717683063781,-1101.45,0.00028767,4]
[328662873,1717683063791,-500.0,0.00028767,4]
[328662874,1717683063802,-500.0,0.00028767,4]
[328662875,1717683063811,-500.0,0.00028767,4]
[328662876,1717683063821,-500.0,0.00028767,4]
[328662877,1717683063831,-500.0,0.00028767,4]
[328662878,1717683063840,-500.0,0.00028767,4]
[328662879,1717683063850,-500.0,0.00028767,4]
[328662880,1717683063859,-269.12,0.00028767,4]
[328662881,1717683063869,-500.0,0.00028767,4]
[328662882,1717683063879,-209.81912399,0.00028767,4]
[328662883,1717683063889,-500.0,0.00028767,4]
[328662884,1717683063898,-289.78630681,0.00028767,4]
[328662885,1717683063908,-500.0,0.00028767,4]
[328662886,1717683063917,-500.0,0.00028767,4]
[328662887,1717683063927,-500.0,0.00028767,4]
[328662888,1717683063937,-500.0,0.00028767,4]
[328662889,1717683063947,-500.0,0.00028767,4]
[328662890,1717683063957,-500.0,0.00028767,4]
[328662891,1717683063966,-500.0,0.00028767,4]
[328662892,1717683063976,-500.0,0.00028767,4]
[328662893,1717683063987,-500.0,0.00028767,4]
[328662894,1717683063996,-500.0,0.00028767,4]
[328662895,1717683064006,-500.0,0.00028767,4]
[328662896,1717683064016,-500.0,0.00028767,4]
[328662897,1717683064026,-726.27,0.00028767,4]
[328662898,1717683064035,-632.46,0.00028767,4]
[328662899,1717683064045,-500.0,0.00028767,4]
[328662900,1717683064055,-500.0,0.00028767,4]
[328662901,1717683064065,-500.0,0.00028767,2]
[328662902,1717683064075,-500.0,0.00028767,4]
[328662903,1717683064087,-500.0,0.00028767,4]
[328662904,1717683064097,-560.2956908,0.00028767,4]
[328662905,1717683064107,-500.0,0.00028767,4]
[328662906,1717683064118,-500.0,0.00028767,4]
[328662907,1717683064127,-987.99,0.00028767,4]
[328662908,1717683064139,-1077.57,0.00028767,4]
[328662909,1717683064149,-500.0,0.00028767,4]
[328662910,1717683064159,-1145.5,0.00028767,4]
[328662911,1717683064168,-500.0,0.00028767,2]
[328662912,1717683064178,-500.0,0.00028767,4]
[328662913,1717683064187,-500.0,0.00028767,4]
[328662914,1717683064197,-500.0,0.00028767,4]
[328662915,1717683064208,-274.59851328,0.00028767,4]
[328662916,1717683064217,-500.0,0.00028767,4]
[328662917,1717683064227,-919.25,0.00028767,4]
[328662918,1717683064237,-500.0,0.00028767,4]
[328662919,1717683064246,-500.0,0.00028767,4]
[328662920,1717683064256,-500.0,0.00028767,4]
[328662921,1717683064266,-500.0,0.00028767,4]
[328662922,1717683064275,-500.0,0.00028767,4]
[328662923,1717683064285,-500.0,0.00028767,4]
[328662924,1717683064295,-500.0,0.00028767,4]
[328662925,1717683064304,-802.38,0.00028767,4]
[328662926,1717683064314,-504.8,0.00028767,4]
[328662927,1717683064324,-797.65,0.00028767,4]
[328662928,1717683064335,-500.0,0.00028767,4]
[328662929,1717683064344,-609.09171892,0.00028767,4]
[328662930,1717683064353,-500.0,0.00028767,4]
[328662931,1717683064363,-500.0,0.00028767,4]
[328662932,1717683064372,-500.0,0.00028767,4]
[328662933,1717683064381,-547.0,0.00028767,4]
[328662934,1717683064390,-500.0,0.00028767,4]
[328662935,1717683064400,-577.35,0.00028767,4]
[328662936,1717683064410,-500.0,0.00028767,4]
[328662937,1717683064423,-838.79,0.00028767,4]
[328662938,1717683064438,-500.0,0.00028767,4]
[328662939,1717683064447,-800.02,0.00028767,4]
[328662940,1717683064457,-500.0,0.00028767,4]
[328662941,1717683064469,-974.14,0.00028767,4]
[328662942,1717683064479,-325.30949614,0.00028767,4]
[328662943,1717683064488,-500.0,0.00028767,4]
[328662944,1717683064498,-366.33536554,0.00028767,4]
[328662945,1717683064510,-500.0,0.00028767,4]
[328662946,1717683064520,-521.06,0.00028767,4]
[328662947,1717683064530,-500.0,0.00028767,4]
[328662948,1717683064539,-500.0,0.00028767,4]
[328662949,1717683064549,-500.0,0.00028767,4]
[328662950,1717683064559,-500.0,0.00028767,4]
[328662951,1717683064569,-500.0,0.00028767,4]
[328662952,1717683064579,-500.0,0.00028767,4]
[328662953,1717683064590,-500.0,0.00028767,4]
[328662954,1717683064600,-500.0,0.00028767,4]
[328662955,1717683064610,-627.42804262,0.00028767,4]
[328662956,1717683064620,-666.21,0.00028767,2]
[328662957,1717683064630,-551.2487281,0.00028767,4]
[328662958,1717683064639,-253.17457519,0.00028767,4]
[328662959,1717683064649,-325.66381396,0.00028767,4]
[328662960,1717683064659,-500.0,0.00028767,4]
[328662961,1717683064669,-239.71856634,0.00028767,4]
[328662962,1717683064679,-533.25,0.00028767,4]
[328662963,1717683064689,-2202.3,0.00028767,4]
[328662964,1717683064700,-500.0,0.00028767,4]
[328662965,1717683064710,-500.0,0.00028767,4]
[328662966,1717683064720,-500.0,0.00028767,4]
[328662967,1717683064730,-657.59,0.00028767,4]
[328662968,1717683064739,-714.91,0.00028767,4]
[328662969,1717683064750,-1000.0,0.00028767,5]
[328662970,1717683064759,-1000.0,0.00028767,5]
[328662971,1717683064769,-1000.0,0.00028767,5]
[328662972,1717683064779,-1000.0,0.00028767,5]
[328662973,1717683064788,-1000.0,0.00028767,5]
[328662974,1717683064798,-500.0,0.00028767,4]
[328662975,1717683064808,-1000.0,0.00028767,5]
[328662976,1717683064818,-663.54,0.00028767,4]
[328662977,1717683064828,-500.0,0.00028767,4]
[328662978,1717683064839,-500.0,0.00028767,4]
[328662979,1717683064849,-814.59,0.00028767,4]
[328662980,1717683064858,-500.0,0.00028767,4]
[328662981,1717683064868,-500.0,0.00028767,4]
[328662982,1717683064878,-566.62,0.00028767,4]
[328662983,1717683064887,-500.0,0.00028767,4]
[328662984,1717683064898,-500.0,0.00028767,4]
[328662985,1717683064908,-500.0,0.00028767,4]
[328662986,1717683064917,-500.0,0.00028767,4]
[328662987,1717683064926,-500.0,0.00028767,4]
[328662988,1717683064936,-500.0,0.00028767,4]
[328662989,1717683064946,-500.0,0.00028767,4]
[328662990,1717683064955,-500.0,0.00028767,4]
[328662991,1717683064964,-500.0,0.00028767,4]
[328662992,1717683064974,-500.0,0.00028767,4]
[328662993,1717683064983,-500.0,0.00028767,4]
[328662994,1717683064993,-500.0,0.00028767,4]
[328662995,1717683065002,-500.0,0.00028767,4]
[328662996,1717683065012,-500.0,0.00028767,4]
[328662997,1717683065021,-500.0,0.00028767,4]
[328662998,1717683065031,-500.0,0.00028767,4]
[328662999,1717683065040,-500.0,0.00028767,4]
[328663000,1717683065049,-580.99,0.00028767,4]
[328663001,1717683065059,-500.0,0.00028767,4]
[328663002,1717683065068,-500.0,0.00028767,4]
[328663003,1717683065077,-500.0,0.00028767,4]
[328663004,1717683065086,-500.0,0.00028767,4]
[328663005,1717683065095,-500.0,0.00028767,4]
[328663006,1717683065105,-522.8,0.00028767,4]
[328663007,1717683065115,-392.092815,0.00028767,4]
[328663008,1717683065124,-500.0,0.00028767,4]
[328663009,1717683065133,-500.0,0.00028767,4]
[328663010,1717683065142,-500.0,0.00028767,4]
[328663011,1717683065152,-500.0,0.00028767,4]
[328663012,1717683065163,-500.0,0.00028767,4]
[328663013,1717683065173,-511.71,0.00028767,4]
[328663014,1717683065182,-500.0,0.00028767,4]
[328663015,1717683065191,-500.0,0.00028767,4]
[328663016,1717683065200,-500.0,0.00028767,4]
[328663017,1717683065210,-586.2,0.00028767,4]
[328663018,1717683065219,-500.0,0.00028767,4]
[328663019,1717683065229,-500.0,0.00028767,4]
[328663020,1717683065239,-585.48657625,0.00028767,4]
[328663021,1717683065250,-500.0,0.00028767,4]
[328663022,1717683065260,-500.0,0.00028767,4]
[328663023,1717683065270,-500.0,0.00028767,4]
[328663024,1717683065279,-500.0,0.00028767,4]
[328663025,1717683065289,-500.0,0.00028767,4]
[328663026,1717683065298,-547.44749427,0.00028767,4]
[328663027,1717683065308,-599.86758487,0.00028767,4]
[328663028,1717683065318,-500.0,0.00028767,4]
[328663029,1717683065328,-612.73,0.00028767,4]
[328663030,1717683065388,-500.0,0.00028767,4]
[328663031,1717683065398,-500.0,0.00028767,4]
[328663032,1717683065407,-538.0,0.00028767,4]
[328663033,1717683065417,-500.0,0.00028767,4]
[328663034,1717683065430,-500.0,0.00028767,4]
[328663035,1717683065441,-500.0,0.00028767,4]
[328663036,1717683065451,-528.0,0.00028767,4]
[328663037,1717683065460,-500.0,0.00028767,4]
[328663038,1717683065470,-500.0,0.00028767,4]
[328663039,1717683065479,-500.0,0.00028767,4]
[328663040,1717683065489,-500.0,0.00028767,4]
[328663041,1717683065501,-500.0,0.00028767,4]
[328663042,1717683065510,-966.61,0.00028767,4]
[328663043,1717683065519,-500.0,0.00028767,4]
[328663044,1717683065528,-583.41613457,0.00028767,4]
[328663045,1717683065537,-500.0,0.00028767,4]
[328663046,1717683065546,-500.0,0.00028767,4]
[328663047,1717683065555,-649.48929272,0.00028767,4]
[328663048,1717683065564,-676.29,0.00028767,4]
[328663049,1717683065574,-639.9,0.00028767,4]
[328663050,1717683065583,-500.0,0.00028767,4]
[328663051,1717683065593,-500.0,0.00028767,4]
[328663052,1717683065601,-615.03933923,0.00028767,4]
[328663053,1717683065610,-500.0,0.00028767,4]
[328663054,1717683065619,-892.2,0.00028767,4]
[328663055,1717683065629,-205.78,0.00028767,4]
[328663056,1717683065638,-1019.57,0.00028767,4]
[328663057,1717683065647,-500.0,0.00028767,4]
[328663058,1717683065656,-508.41,0.00028767,4]
[328663059,1717683065666,-500.0,0.00028767,4]
[328663060,1717683065676,-500.0,0.00028767,4]
[328663061,1717683065685,-545.1,0.00028767,2]
[328663062,1717683065695,-500.0,0.00028767,4]
[328663063,1717683065704,-1335.76,0.00028767,4]
[328663064,1717683065714,-500.0,0.00028767,4]
[328663065,1717683065723,-500.0,0.00028767,4]
[328663066,1717683065732,-500.0,0.00028767,4]
[328663067,1717683065741,-500.0,0.00028767,4]
[328663068,1717683065750,-972.64,0.00028767,4]
[328663069,1717683065759,-500.0,0.00028767,4]
[328663070,1717683065769,-500.0,0.00028767,4]
[328663071,1717683065778,-500.0,0.00028767,4]
[328663072,1717683065787,-500.0,0.00028767,4]
[328663073,1717683065796,-814.1,0.00028767,4]
[328663074,1717683065805,-500.0,0.00028767,4]
[328663075,1717683065814,-500.0,0.00028767,4]
[328663076,1717683065824,-500.0,0.00028767,4]
[328663077,1717683065834,-500.0,0.00028767,4]
[328663078,1717683065843,-500.0,0.00028767,4]
[328663079,1717683065852,-500.0,0.00028767,4]
[328663080,1717683065861,-500.0,0.00028767,4]
[328663081,1717683065871,-500.0,0.00028767,4]
[328663082,1717683065881,-500.0,0.00028767,4]
[328663083,1717683065891,-946.29,0.00028767,4]
[328663084,1717683065900,-577.79,0.00028767,4]
[328663085,1717683065910,-8775.88,0.00028767,4]
[328663086,1717683065919,-500.0,0.00028767,4]
[328663087,1717683065928,-628.87,0.00028767,4]
[328663088,1717683065937,-763.61,0.00028767,4]
[328663089,1717683065946,-500.0,0.00028767,4]
[328663090,1717683065955,-836.96,0.00028767,4]
[328663091,1717683065964,-681.05,0.00028767,4]
[328663092,1717683065973,-500.0,0.00028767,4]
[328663093,1717683065982,-830.47,0.00028767,4]
[328663094,1717683065992,-500.0,0.00028767,4]
[328663095,1717683066001,-500.0,0.00028767,4]
[328663096,1717683066010,-500.0,0.00028767,4]
[328663097,1717683066020,-500.0,0.00028767,4]
[328663098,1717683066029,-500.0,0.00028767,4]
[328663099,1717683066039,-585.26,0.00028767,4]
[328663100,1717683066048,-500.0,0.00028767,4]
[328663101,1717683066057,-1004.52,0.00028767,4]
[328663102,1717683066067,-1073.71,0.00028767,4]
[328663103,1717683066076,-500.0,0.00028767,4]
[328663104,1717683066087,-500.0,0.00028767,4]
[328663105,1717683066096,-585.91,0.00028767,4]
[328663106,1717683066105,-596.18,0.00028767,4]
[328663107,1717683066115,-543.99,0.00028767,4]
[328663108,1717683066125,-2874.61,0.00028767,21]
[328663109,1717683066134,-2874.61,0.00028767,21]
[328663110,1717683066144,-2874.61,0.00028767,21]
[328663111,1717683066153,-2874.61,0.00028767,21]
[328663112,1717683066162,-2956.34,0.00028767,4]
[328663113,1717683066172,-2874.61,0.00028767,21]
[328663114,1717683066182,-2874.61,0.00028767,21]
[328663115,1717683066192,-1270.51,0.00028767,4]
[328663116,1717683066202,-5274.7,0.00028767,4]
[328663117,1717683066215,-532.29,0.00028767,4]
[328663118,1717683066226,-500.0,0.00028767,4]
[328663119,1717683066235,-610.77,0.00028767,4]
[328663120,1717683066244,-1393.93,0.00028767,4]
[328663121,1717683066253,-888.14,0.00028767,4]
[328663122,1717683066264,-3699.29,0.00028767,4]
[328663123,1717683066274,-500.0,0.00028767,4]
[328663124,1717683066282,-610.91,0.00028767,4]
[328663125,1717683066291,-500.0,0.00028767,4]
[328663126,1717683066300,-500.0,0.00028767,4]
[328663127,1717683066312,-500.0,0.00028767,4]
[328663128,1717683066323,-2815.93,0.00028767,4]
[328663129,1717683066333,-634.77,0.00028767,4]
[328663130,1717683066343,-500.0,0.00028767,4]
[328663131,1717683066354,-742.62,0.00028767,4]
[328663132,1717683066364,-513.38,0.00028767,4]
[328663133,1717683066374,-500.0,0.00028767,4]
[328663134,1717683066383,-500.0,0.00028767,4]
[328663135,1717683066392,-500.0,0.00028767,4]
[328663136,1717683066402,-500.0,0.00028767,4]
[328663137,1717683066411,-500.0,0.00028767,4]
[328663138,1717683066420,-500.0,0.00028767,4]
[328663139,1717683066433,-500.0,0.00028767,4]
[328663140,1717683066442,-500.0,0.00028767,4]
[328663141,1717683066452,-1456.81,0.00028767,4]
[328663142,1717683066462,-500.0,0.00028767,4]
[328663143,1717683066471,-603.48,0.00028767,4]
[328663144,1717683066481,-506.53,0.00028767,4]
[328663145,1717683066491,-669.58,0.00028767,4]
[328663146,1717683066499,-500.0,0.00028767,4]
[328663147,1717683066512,-500.0,0.00028767,4]
[328663148,1717683066521,-500.0,0.00028767,4]
[328663149,1717683066532,-500.0,0.00028767,4]
[328663150,1717683066541,-829.43330758,0.00028767,4]
[328663151,1717683066844,-1564.51669242,0.00028767,4]
[328663152,1717683066854,-500.0,0.00028767,4]
[328663153,1717683066863,-500.0,0.00028767,4]
[328663154,1717683066872,-1406.7,0.00028767,4]
[328663155,1717683066881,-4438.97,0.00028767,4]
[328663156,1717683066890,-500.0,0.00028767,4]
[328663157,1717683066899,-562.74432337,0.00028767,4]
[328663158,1717683066908,-500.0,0.00028767,4]
[328663159,1717683066917,-500.0,0.00028767,4]
[328663160,1717683066926,-500.0,0.00028767,4]
[328663161,1717683066935,-727.93,0.00028767,4]
[328663162,1717683066945,-1151.3,0.00028767,4]
[328663163,1717683066956,-500.0,0.00028767,4]
[328663164,1717683066967,-500.0,0.00028767,4]
[328663165,1717683066976,-2730.1,0.00028767,4]
[328663166,1717683066985,-1673.74,0.00028767,4]
[328663167,1717683066995,-500.0,0.00028767,4]
[328663168,1717683067004,-500.0,0.00028767,4]
[328663169,1717683067014,-500.0,0.00028767,4]
[328663170,1717683067023,-500.0,0.00028767,4]
[328663171,1717683067032,-1555.57,0.00028767,4]
[328663172,1717683067042,-500.0,0.00028767,4]
[328663173,1717683067051,-500.0,0.00028767,4]
[328663174,1717683067061,-2644.53,0.00028767,4]
[328663175,1717683067070,-500.0,0.00028767,4]
[328663176,1717683067079,-500.0,0.00028767,4]
[328663177,1717683067090,-648.81,0.00028767,4]
[328663178,1717683067099,-500.0,0.00028767,4]
[328663179,1717683067108,-500.0,0.00028767,4]
[328663180,1717683067117,-500.0,0.00028767,4]
[328663181,1717683067127,-500.0,0.00028767,4]
[328663182,1717683067137,-500.0,0.00028767,4]
[328663183,1717683067146,-687.06,0.00028767,4]
[328663184,1717683067155,-500.0,0.00028767,4]